[Event "New York Winter Invitational GM-A 2022"]
[Site "New York"]
[Date "2022.01.15"]
[Round "4.3"]
[White "Rozman, Levy"]
[Black "Shlyakhtenko, Robert"]
[Result "0-1"]
[ECO "A21"]
[WhiteElo "2346"]
[BlackElo "2383"]
[Annotator "ChessBase"]
[PlyCount "107"]
[EventDate "2022.01.11"]
[EventType "tourn"]
[EventCountry "USA"]
[SourceTitle "playchess.com"]
[Source "ChessBase"]
[SourceQuality "1"]
[TimeControl "5400+30"]

1. c4 {[%emt 0:01:04]} e5 {[%emt 0:00:18]} 2. Nc3 {[%emt 0:00:42]} Bb4 {[%emt 0:00:25]} 3. g3 {[%emt 0:04:55]} Bxc3 {[%emt 0:00:18]} 4. dxc3 {[%emt 0:00:54]} d6 {[%emt 0:00:38]} 5. Bg2 {[%emt 0:03:37]} Nc6 {[%emt 0:00:27]} 6. e4 {[%emt 0:02:36]} Be6 {[%emt 0:03:08]} 7. b3 {[%emt 0:00:41]} Qd7 {[%emt 0:01:07]} 8. h3 {[%emt 0:07:04]} Nge7 {[%emt 0:02:03]} 9. Ne2 {[%emt 0:01:08]} O-O {[%emt 0:03:34]} 10. g4 {[%emt 0:03:18]} Ng6 {[%emt 0:01:51]} 11. Ng3 {[%emt 0:01:53]} a6 {[%emt 0:12:54]} 12. Be3 {[%emt 0:03:01]} b5 {[%emt 0:01:34]} 13. cxb5 {[%emt 0:12:13]} axb5 {[%emt 0:00:14]} 14. O-O {[%emt 0:00:23]} Ra3 {[%emt 0:04:55]} 15. Nh5 {[%emt 0:05:55]} Qe7 {[%emt 0:06:46]} 16. Qe2 {[%emt 0:01:54]} Ra5 {[%emt 0:01:16]} 17. a4 {[%emt 0:07:41]} Rfa8 {[%emt 0:06:20]} 18. Rac1 {[%emt 0:05:19]} Bxb3 {[%emt 0:07:15]} 19. axb5 {[%emt 0:00:51]} Ra2 {[%emt 0:01:42]} 20. Qd3 {[%emt 0:02:29]} Na5 {[%emt 0:00:33]} 21. c4 {[%emt 0:00:32]} Qe6 {[%emt 0:01:05]} 22. c5 {[%emt 0:06:43]} Bc4 {[%emt 0:03:55]} 23. Qc3 {[%emt 0:03:24]} Bxb5 {[%emt 0:04:18]} 24. cxd6 {[%emt 0:01:46]} Bxf1 {[%emt 0:05:42]} 25. Bxf1 {[%emt 0:03:06]} cxd6 {[%emt 0:00:28]} 26. Qc7 {[%emt 0:01:08]} Ne7 {[%emt 0:03:54]} 27. Rd1 {[%emt 0:02:01]} d5 {[%emt 0:01:36]} 28. Bc5 {[%emt 0:05:50]} Nac6 {[%emt 0:01:07]} 29. Bxe7 {[%emt 0:00:07]} Nxe7 {[%emt 0:00:11]} 30. Bc4 {[%emt 0:00:03]} R2a7 {[%emt 0:00:49]} 31. Qc5 {[%emt 0:00:09]} Ra1 {[%emt 0:01:11]} 32. Rxa1 {[%emt 0:01:25]} Rxa1+ {[%emt 0:00:08]} 33. Bf1 {[%emt 0:00:05]} d4 {[%emt 0:03:30]} 34. Kg2 {[%emt 0:00:11]} g6 {[%emt 0:00:51]} 35. Bc4 {[%emt 0:00:17]} Rc1 {[%emt 0:07:28]} 36. Qa5 {[%emt 0:00:12]} Qc8 {[%emt 0:01:02]} 37. Qxe5 {[%emt 0:10:17]} gxh5 {[%emt 0:00:12]} 38. Qg5+ {[%emt 0:00:06]} Ng6 {[%emt 0:01:32]} 39. Qxc1 {[%emt 0:00:07]} Qc7 {[%emt 0:05:50]} 40. gxh5 {[%emt 0:00:21]} Nf4+ {[%emt 0:00:27]} 41. Kf3 {[%emt 0:03:59]} Nxh3 {[%emt 0:00:26]} 42. h6 {[%emt 0:00:39]} Qh2 {[%emt 0:01:17]} 43. Bxf7+ {[%emt 0:00:31]} Kxf7 {[%emt 0:00:06]} 44. Qc4+ {[%emt 0:00:14]} Ke7 {[%emt 0:01:14]} 45. Qb4+ {[%emt 0:01:34]} Qd6 {[%emt 0:00:37]} 46. Qb7+ {[%emt 0:00:06]} Qd7 {[%emt 0:00:59]} 47. Qb4+ {[%emt 0:00:05]} Kf7 {[%emt 0:00:12]} 48. Qc4+ {[%emt 0:00:16]} Kg6 {[%emt 0:01:09]} 49. Qg8+ {[%emt 0:01:15]} Kxh6 {[%emt 0:00:37]} 50. Qf8+ {[%emt 0:00:06]} Kh5 {[%emt 0:00:07]} 51. Ke2 {[%emt 0:00:41]} Qg4+ {[%emt 0:00:36]} 52. Kd3 {[%emt 0:00:38]} Nf4+ {[%emt 0:00:10]} 53. Kc4 {[%emt 0:00:16]} Qe2+ {[%emt 0:00:16]} 54. Kxd4 {[%emt 0:01:42]} 0-1